Cogmind - Beta 16 @@@ ROGUE MODE // 2025.12.25 @ 01:27:44 Player: h76 Result: Destroyed by S-27 Virus with Autogun Performance ------------- Evolutions (4) 2000 Regions Visited (5) 1000 Robots Destroyed (52) 260 Value Destroyed (1416) 1416 Prototype IDs (4) 80 Alien Tech Used (0) 0 Bonus (274) 274 TOTAL SCORE: 5030 Bonus ------- Follower Combat Kills 74 Entered Garrisons 200 Cogmind --------- Core Integrity 0/850 Matter 51/300 Energy 100/100 System Corruption 3% Temperature Cool (0) Movement Core (50) Location -6/Garrison Parts ------- > --- POWER (1) -------- (None) > --- PROPULSION (5) --- (None) > --- UTILITY (5) ------ (None) > --- WEAPON (4) ------- (None) > --- INVENTORY (5) ---- Medium Storage Unit Improved Medium Armor Plating Peak State ------------ > --- POWER ------------ Improved Deuterium Engine > --- PROPULSION ------- Nuclear Pulse Thruster Biomechanical Wings Biomechanical Wings Biomechanical Wings Biomechanical Wings > --- UTILITY ---------- Power Amplifier Phase Shifter Hacking Suite Hacking Suite Hacking Suite > --- WEAPON ----------- Hypervelocity Gauss Rifle Hypervelocity Gauss Rifle Hypervelocity Gauss Rifle > --- INVENTORY -------- Medium Storage Unit Improved Medium Armor Plating Hypervelocity Gauss Rifle Hypervelocity Gauss Rifle Falx [Rating: 69] Favorites ----------- Power Deuterium Engine Engine Deuterium Engine Power Core Fusion Compressor Propulsion Light Treads Treads Light Treads Wheel Armored Huge Wheel Flight Unit Biomechanical Wings Utility Large Storage Unit Device Subdweller Optics Storage Large Storage Unit Hackware Hacking Suite Protection Hardened Light Armor Plating Weapon Light Cannon Energy Gun Improved Medium Laser Energy Cannon Subdweller Beam Cannon Ballistic Gun Hypervelocity Gauss Rifle Ballistic Cannon Light Cannon Special Weapon Flamer Slashing Weapon Falx Piercing Weapon Makeshift Spear Special Melee Weapon Improved Datajack Build | -11 -10 -10 -8 -6 -6 ------- Run | Yrd Mat Sub Scr Fac Gar Slots Evolved 8 | . . . . 8 . Power . | . . . . . . Propulsion 3 | . . . . 3 . Utility 3 | . . . . 3 . Weapon 2 | . . . . 2 . Parts Attached 62 | 6 9 4 6 33 4 Power 8 | 1 2 . 2 2 1 Engine 7 | 1 2 . 1 2 1 Core 1 | . . . 1 . . Reactor . | . . . . . . Propulsion 15 | 2 2 . 1 9 1 Treads 5 | 2 2 . . 1 . Leg . | . . . . . . Wheel 2 | . . . 1 1 . Hover . | . . . . . . Flight 8 | . . . . 7 1 Utility 15 | 1 2 1 1 10 . Device 5 | . 1 1 . 3 . Storage 3 | 1 1 . . 1 . Processor . | . . . . . . Hackware 4 | . . . . 4 . Protection 3 | . . . 1 2 . Artifact . | . . . . . . Weapon 24 | 2 3 3 2 12 2 Energy Gun 2 | . 1 . . 1 . Energy Cannon 1 | . . 1 . . . Ballistic Gun 12 | 2 . . . 9 1 Ballistic Cannon 2 | . 2 . . . . Launcher . | . . . . . . Special Weapon 2 | . . 1 . 1 . Impact Weapon . | . . . . . . Slashing Weapon 3 | . . . 2 . 1 Piercing Weapon 1 | . . 1 . . . Special Melee Weapon 1 | . . . . 1 . Unidentified Prototypes 1 | . . . . 1 . Parts Lost 26 | . 1 2 . 13 10 Power 4 | . 1 1 . 1 1 Propulsion 6 | . . . . 3 3 Utility 6 | . . 1 . 3 2 Weapon 10 | . . . . 6 4 Highest Loss Streak 9 | . 1 2 . 9 7 To Critical Strikes . | . . . . . . Average Backups 7 | 1 5 8 11 6 2 Power . | . . . . . . Propulsion 1 | 1 1 2 1 . . Utility 2 | . 1 3 2 1 2 Weapon 4 | . 1 3 6 3 . Tool/Special . | . . . . . . Unused Backups 10 | . . . 2 8 . Power 1 | . . . . 1 . Propulsion 3 | . . . 1 2 . Utility 3 | . . . . 3 . Weapon 3 | . . . 1 2 . Tool/Special . | . . . . . . Average Slot Usage (%) 79 | . 97 80 75 75 28 Engine 7 | . 13 . 8 5 1 Treads 18 | . 28 28 18 1 . Wheel 2 | . . . 4 4 . Flight 4 | . . . . 19 12 Device 8 | . 11 8 10 2 . Storage 11 | . 14 14 14 2 . Hackware 2 | . . . . 13 8 Protection 1 | . . . 3 3 . Energy Gun 1 | . . 4 . . . Energy Cannon 1 | . . 3 . 2 . Ballistic Gun 3 | . 3 . . 12 4 Ballistic Cannon 7 | . 23 11 . . . Slashing Weapon 2 | . . . 4 3 . Piercing Weapon 4 | . . 3 10 . . Peak Build Rating 69 | 6 9 13 25 69 33 Average Rating 18 | 4 7 9 15 51 20 On Entrance 12 | . 6 8 13 22 27 Avg Prop Armor Cover (%) 6 | . . . . 6 . Naked Turns 9 | . . . . . 9 Heaviest Build 58 | 13 32 32 38 58 15 Greatest Support 40 | 40 40 40 40 36 17 Greatest Overweight (x) 2 | . . . 1 2 1 Average Overweight (x) . | . . . . . . Largest Inventory Capacity 15 | 8 15 15 15 15 5 Average Capacity 13 | 6 14 15 15 8 5 Most Carried 15 | 5 7 11 15 15 5 Average Carried 8 | 1 5 8 11 6 2 Final Capacity 15 | 8 15 15 15 5 5 Final Carried 11 | 1 7 11 11 3 2 Class Distribution -------------------- 67% | Mutant 12% | Scavenger-Mutant 9% | Hacker-Sprinter 4% | Hacker-Mutant 3% | Hacker-Tank Dominant Class ---------------- Scavenger-Mutant | -10/Materials Mutant | -10/Subcaves Mutant | -8/Scraptown Hacker-Sprinter | -6/Factory Mutant | -6/Garrison Resources | -11 -10 -10 -8 -6 -6 ----------- Run | Yrd Mat Sub Scr Fac Gar Matter Collected 1762 | 260 366 149 80 741 166 Remotely . | . . . . . . Salvage Created 1732 | . 646 90 . 797 199 Parts 120 | . 50 5 . 54 11 Haulers Intercepted 4 | . 2 . . 2 . Recyclers Shooed 3 | . . . . 3 . Parts Field Recycled . | . . . . . . Retrieved Matter . | . . . . . . Parts Self-Destructed 3 | . . 3 . . . Prevented . | . . . . . . Parts Restored . | . . . . . . Kills | -11 -10 -10 -8 -6 -6 ------- Run | Yrd Mat Sub Scr Fac Gar Combat Hostiles Destroyed 36 | . 20 3 . 10 3 Melee 1 | . . . . 1 . Guns 16 | . 6 . . 7 3 Cannons 19 | . 14 3 . 2 . Classes Destroyed 10 | . 7 1 . 2 . Worker 2 | . 1 . . 1 . Builder 2 | . 1 . . 1 . Hauler 4 | . 2 . . 2 . Operator 4 | . 3 . . 1 . Watcher 4 | . 3 . . 1 . Swarmer 13 | . 9 . . 4 . Grunt 16 | . 11 . . 2 3 Sentry 2 | . . . . 2 . Hunter 2 | . . . . 2 . Subdweller 3 | . . 3 . . . Best Kill Streak 7 | . 7 1 . 5 1 Combat Bots Only 5 | . 5 1 . 4 1 Max Kills in Single Turn 2 | . 1 1 . 2 1 Gunslinging 1 | . . . . 1 . Exploded . | . . . . . . Melee 1 | . . . . 1 . Uniques/NPCs Destroyed . | . . . . . . Combat | -11 -10 -10 -8 -6 -6 -------- Run | Yrd Mat Sub Scr Fac Gar Hostile Shots Fired 474 | . 78 15 . 269 112 Missed 177 | . 18 5 . 107 47 Hits 297 | . 60 10 . 162 65 Melee 2 | . . . . . 2 Projectile 295 | . 60 10 . 162 63 AOE 3 | . 3 . . . . Critical Strikes 7 | . . . . 1 6 Damage Taken 3875 | . 655 447 . 1737 1036 Core 1079 | . 115 106 . 384 474 Absorbed by Shields 181 | . . . . 94 87 Regen/Repaired (Parts) 139 | . 114 . . 25 . Core Remaining (%) 55 | 100 . . 11 . . Volleys Fired 137 | . 46 13 . 50 28 Largest 3 | . 2 2 . 3 1 Hottest 141 | . 86 100 . 141 35 Shots Fired 285 | . 92 22 . 143 28 Gun 174 | . 22 . . 124 28 Cannon 106 | . 70 19 . 17 . Launcher . | . . . . . . Special 5 | . . 3 . 2 . Kinetic 254 | . 84 18 . 124 28 Thermal 29 | . 8 4 . 17 . Explosive . | . . . . . . Electromagnetic . | . . . . . . Robot Hit Streak 10 | . 9 9 . 10 8 Robot Miss Streak 12 | . 3 1 . 12 1 Penetration Max 2 | . . . . 2 1 Secondary Targets 3 | . 1 . . 2 . Max Gunslinging Chain 1 | . 1 . . 1 . Shots Hit Robots 173 | . 56 15 . 80 22 Core Hits 87 | . 31 6 . 43 7 Critical Kills 12 | . . . . 9 3 Critical Parts Destroyed 16 | . . . . 12 4 Critical Strikes 32 | . 2 1 . 22 7 Burn 1 | . 1 . . . . Destroy 29 | . . . . 22 7 Blast 2 | . 1 1 . . . Melee Attacks 12 | . . . . 7 5 Thermal 5 | . . . . . 5 Impact . | . . . . . . Slashing 3 | . . . . 3 . Piercing . | . . . . . . Sneak Attacks 1 | . . . . 1 . Combat Hostiles . | . . . . . . Follow-up Attacks . | . . . . . . Damage Inflicted 2622 | . 956 240 . 1112 314 Guns 1243 | . 207 . . 722 314 Cannons 1238 | . 747 240 . 251 . Explosions . | . . . . . . Melee 139 | . . . . 139 . Ramming 2 | . 2 . . . . Kinetic 2125 | . 849 240 . 722 314 Thermal 356 | . 105 . . 251 . Explosive . | . . . . . . Electromagnetic . | . . . . . . Impact . | . . . . . . Slashing 139 | . . . . 139 . Piercing . | . . . . . . Highest Corruption 3 | . . . . 3 3 Average Corruption 2 | . . . . 2 3 Corruption Purged . | . . . . . . Corruption Blocked . | . . . . . . Effects 27 | . . . . 19 8 Message Errors 5 | . . . . 3 2 Matter Fused 7 | . . . . 5 2 Heat Flow Errors 6 | . . . . 4 2 Energy Discharges 3 | . . . . 2 1 Parts Fused 1 | . . . . 1 . Data Loss (minor) 2 | . . . . 1 1 Data Loss (major) 1 | . . . . 1 . Alerts 1 | . . . . 1 . Weapon Failures 1 | . . . . 1 . Overload Shots . | . . . . . . Overflow Damage 18 | . 2 . . 16 . Projectiles 18 | . 2 . . 16 . Explosions . | . . . . . . Melee . | . . . . . . Knockbacks 11 | . 6 5 . . . Impact . | . . . . . . Kinetic 11 | . 6 5 . . . Secondary . | . . . . . . Self-Inflicted Damage . | . . . . . . Shots . | . . . . . . Rammed 1 | . 1 . . . . Targets Rammed 1 | . 1 . . . . Kicked . | . . . . . . Crushed . | . . . . . . Highest Temperature 342 | . 96 . . 342 233 Average Temperature 64 | . 26 . . 73 94 Received Heat Transfer 1084 | . 183 60 . 333 508 Effects 2 | . . . . 2 . Shutdowns 1 | . . . . 1 . Damage (minor) 1 | . . . . 1 . Siege Activations . | . . . . . . Martial Activations . | . . . . . . Shielding Activations . | . . . . . . Robots Disrupted . | . . . . . . Combat Hostiles . | . . . . . . Robots Corrupted . | . . . . . . Combat Hostiles . | . . . . . . Parts Fried . | . . . . . . Impact Corruptions . | . . . . . . Robots Melted . | . . . . . . Combat Hostiles . | . . . . . . Parts Melted 1 | . . . . 1 . Heat Transferred 629 | . 296 . . 333 . Parts Sabotaged 3 | . . . . . 3 Parts Stolen . | . . . . . . Parts Stripped . | . . . . . . Power Chain Reactions . | . . . . . . Alert | -11 -10 -10 -8 -6 -6 ------- Run | Yrd Mat Sub Scr Fac Gar Maximum Alert Level 1 | . . . . 1 . Low Security (%) 91 | 100 100 . . 77 100 Level 1 8 | . . . . 22 . Level 2 . | . . . . . . Level 3 . | . . . . . . Level 4 . | . . . . . . Level 5 . | . . . . . . High Security . | . . . . . . Max Security . | . . . . . . Peak Influence 345 | . 198 . . 345 151 Initial 97 | . . . . . 97 Average 90 | . 87 . . 92 110 Influence Increases 1427 | . 560 . . 723 144 Destroy 0b10 Robot/C 700 | . 400 . . 240 60 Destroy 0b10 Robot/NC 80 | . 50 . . 30 . Destroy Leader 146 | . 80 . . 66 . Allied During Kill 4 | . . . . 4 . Successful Hack 91 | . 12 . . 75 4 Disable Machine 45 | . 15 . . 30 . Destroy Structure 16 | . 3 . . 8 5 Partial Spotted 30 | . . . . 30 . Lose Combat Pursuer 315 | . . . . 240 75 Influence Decreases 1286 | . 497 63 . 584 142 Entered New Map 73 | . . 31 . . 42 Time Decay 816 | . 487 12 . 317 . Search Patrol Dispatched 100 | . . . . 100 . Lost Part 257 | . 10 20 . 127 100 Lost Ally 40 | . . . . 40 . Squads Dispatched 12 | . 3 . . 9 . Investigation 7 | . 2 . . 5 . Extermination 2 | . . . . 2 . Reinforcement 3 | . 1 . . 2 . Assault . | . . . . . . Garrison . | . . . . . . Intercept . | . . . . . . Searches Triggered 1 | . . . . 1 . Construction Impeded . | . . . . . . Haulers Reinforced 1 | . . . . 1 . Active Scanning Responses . | . . . . . . Cargo Convoy Interrupts . | . . . . . . Stealth | -11 -10 -10 -8 -6 -6 --------- Run | Yrd Mat Sub Scr Fac Gar Distress Signals 4 | . 2 . . 2 . Communications Jammed . | . . . . . . Distress Signals . | . . . . . . Times Spotted 97 | . 28 3 . 42 24 Peak Tracking Total 16 | . 5 2 . 8 16 Tactical Retreats 11 | . . . . 8 3 Traps | -11 -10 -10 -8 -6 -6 ------- Run | Yrd Mat Sub Scr Fac Gar Traps Triggered 22 | . 2 6 . 6 8 Indirectly . | . . . . . . Trap Hack Attempts . | . . . . . . Triggered . | . . . . . . Disarmed . | . . . . . . Reprogrammed . | . . . . . . Reused . | . . . . . . Traps Extracted . | . . . . . . Installed . | . . . . . . Triggered . | . . . . . . Machines | -11 -10 -10 -8 -6 -6 ---------- Run | Yrd Mat Sub Scr Fac Gar Machines Disabled 3 | . 1 . . 2 . Max in Single Turn 1 | . 1 . . 1 . Machines Repaired . | . . . . . . Machines Dismantled . | . . . . . . Machines Sabotaged . | . . . . . . Overloaded Fab Kills . | . . . . . . Hacking | -11 -10 -10 -8 -6 -6 --------- Run | Yrd Mat Sub Scr Fac Gar Machines Accessed 24 | . 4 . 2 17 1 Terminals 13 | . 3 . . 9 1 Fabricators 3 | . . . . 3 . Repair Stations 2 | . 1 . . 1 . Recycling Units 3 | . . . . 3 . Scanalyzers . | . . . . . . Garrison Access 1 | . . . . 1 . Total Hacks 61 | . 8 . 19 33 1 Successful 43 | . 5 . 19 18 1 Failed 18 | . 3 . . 15 . Catastrophic 1 | . . . . 1 . Database Lockouts . | . . . . . . Manual . | . . . . . . Terminals 21 | . 6 . . 14 1 Fabricators 9 | . . . . 9 . Repair Stations 4 | . 2 . . 2 . Recycling Units 6 | . . . . 6 . Scanalyzers . | . . . . . . Garrison Access 2 | . . . . 2 . Terminal Hacks 32 | . 3 . 19 9 1 Record 20 | . . . 19 1 . Robot Schematic 1 | . . . . 1 . Prototype ID Bank 2 | . 2 . . . . Open Door 1 | . . . . . 1 Open DSF 3 | . . . . 3 . Emergency Access Points 1 | . . . . 1 . Dispatch Records 1 | . 1 . . . . Recall Investigation 1 | . . . . 1 . Recall Extermination 1 | . . . . 1 . Zone Layout 1 | . . . . 1 . Fabricator Hacks 4 | . . . . 4 . Network Status 1 | . . . . 1 . Load Schematic 2 | . . . . 2 . Build 1 | . . . . 1 . Repair Station Hacks 4 | . 2 . . 2 . Scan Component 2 | . 1 . . 1 . Repair 2 | . 1 . . 1 . Recycling Unit Hacks 2 | . . . . 2 . Retrieve Components 2 | . . . . 2 . Scanalyzer . | . . . . . . Garrison Access Hacks 1 | . . . . 1 . Unlock Access 1 | . . . . 1 . Unauthorized Hacks . | . . . . . . Terminals . | . . . . . . Fabricators . | . . . . . . Repair Stations . | . . . . . . Recycling Units . | . . . . . . Scanalyzers . | . . . . . . Garrison Access . | . . . . . . Data Cores Recovered 3 | . 2 . . 1 . Used 1 | . . . . 1 . Hacking Detections 13 | . 2 . . 11 . Full Trace Events 4 | . . . . 4 . Feedback Events 1 | . . . . 1 . Corruption 1 | . . . . 1 . Feedback Blocked . | . . . . . . Robot Schematics Acquired 1 | . . . . 1 . Robots Built 2 | . . . . 2 . Authchips . | . . . . . . Time 44 | . . . . 44 . Total Robot Build Rating 8 | . . . . 8 . Part Schematics Acquired . | . . . . . . Parts Built . | . . . . . . Authchips . | . . . . . . Time . | . . . . . . Total Part Build Rating . | . . . . . . Part Studies Acquired . | . . . . . . Parts Repaired 2 | . 1 . . 1 . Time 51 | . 26 . . 25 . Parts Recycled . | . . . . . . Recycled Matter . | . . . . . . Retrieved Matter . | . . . . . . Retrieved Components 15 | . . . . 15 . Parts Scanalyzed . | . . . . . . Part Schematics Acquired . | . . . . . . Parts Damaged . | . . . . . . Bothacking | -11 -10 -10 -8 -6 -6 ------------ Run | Yrd Mat Sub Scr Fac Gar Used RIF Installer . | . . . . . . Robots Hacked 2 | . . . . 2 . Non-combat 2 | . . . . 2 . Combat . | . . . . . . Robot Hacks Applied 2 | . . . . 2 . find_chute 1 | . . . . 1 . find_recycling 1 | . . . . 1 . Relay Couplers Released . | . . . . . . Fabnet Peak Effective % . | . . . . . . Robots Rewired . | . . . . . . Allies Hacked . | . . . . . . Hacks Repelled . | . . . . . . Allies | -11 -10 -10 -8 -6 -6 -------- Run | Yrd Mat Sub Scr Fac Gar Total Allies 2 | . . . . 2 . Largest Group 2 | . . . . 2 . Highest-Rated Group 64 | . . . . 64 . Highest-Rated Ally 32 | . . . . 32 . Total Orders . | . . . . . . Ally Attacks 9 | . . . . 9 . Total Damage 276 | . . . . 276 . Kills 2 | . . . . 2 . Allies Corrupted . | . . . . . . Allies Melted . | . . . . . . Intel | -11 -10 -10 -8 -6 -6 ------- Run | Yrd Mat Sub Scr Fac Gar Active Infowar (turns) 2018 | . 1250 576 . 192 . Optics 556 | . . 556 . . . Structural 1462 | . 1250 20 . 192 . Robot Analysis Total . | . . . . . . Derelict Logs Recovered 3 | . . 1 2 . . Drone Launches . | . . . . . . Drone Recoveries . | . . . . . . Exploration | -11 -10 -10 -8 -6 -6 ------------- Run | Yrd Mat Sub Scr Fac Gar Turns Passed 6192 | 57 1468 1178 2083 1084 322 Spaces Moved 4917 | 36 787 701 1456 1572 365 Core 15 | 11 . . . . 4 Treads 2364 | 25 787 701 851 . . Legs . | . . . . . . Wheels 890 | . . . 605 285 . Hover . | . . . . . . Flight 1648 | . . . . 1287 361 Fastest Speed 28 | 50 160 160 115 28 32 Average Speed 108 | 126 160 160 141 44 36 Slowest Speed 160 | 160 160 160 160 130 100 Overloaded Moves . | . . . . . . Propulsion Burnouts . | . . . . . . Robots Hopped 8 | . . . . 6 2 Potential Cave-ins . | . . . . . . Cave-ins Triggered . | . . . . . . Exploration Rate (%) 48 | 3 97 36 61 39 55 Regions Visited 5 Branch Regions 2 Pre-discovered Areas . | . . . . . . Known Exits Taken 1 | . . . . 1 . Unknown Exits Taken 4 | 1 1 1 1 . . Scrap Searched 13 | . . 5 8 . . Spaces Dug . | . . . . . . Terrain Destroyed 8 | . . . . 8 . Melee . | . . . . . . Projectile 4 | . . . . 4 . AOE . | . . . . . . Terrain Rammed . | . . . . . . Walls Destroyed . | . . . . . . Machines Disabled . | . . . . . . Actions | -11 -10 -10 -8 -6 -6 --------- Run | Yrd Mat Sub Scr Fac Gar Total 5514 | 48 904 725 1485 1839 513 Wait 134 | . 44 . . 81 9 Move 4894 | 35 786 700 1455 1560 358 Hop 7 | . . . . 5 2 Pick Up 71 | 7 13 6 9 30 6 Fast Attach 8 | . . . 1 7 . Attach 52 | 6 4 2 2 29 9 Detach 12 | . . . 2 8 2 Swap 19 | . 6 3 5 5 . Drop 43 | . 4 1 11 27 . Fire 137 | . 46 13 . 50 28 Melee 12 | . . . . 7 5 Ram . | . . . . . . Kick . | . . . . . . Crush 1 | . 1 . . . . Escape Stasis 124 | . . . . 30 94 Rewire . | . . . . . . Trap . | . . . . . . Miscellaneous . | . . . . . . Route ------- -11/Scrapyard -10/Materials (discovered 5 exits: [*Mat x3] / [*Min] / [*Sub]) -10/Subcaves (discovered 2 exits: Mat / *Scr) -8/Scraptown -6/Factory (discovered 3 exits: [*Fac] / [*Low] / Gar) -6/Garrison (discovered 1 exit: [*Fac]) History --------- Turn | Location | Event 31 | -11/Scrapyard | Discovered new exit (range 13) 58 | -11/Scrapyard | Entered Materials 316 | -10/Materials | Build established: Mutant 555 | -10/Materials | Discovered new exit (range 15) 686 | -10/Materials | Repaired Lgt. Cannon 790 | -10/Materials | Discovered new exit (range 14) 900 | -10/Materials | Discovered new exit (range 8) 1083 | -10/Materials | Build established: Scavenger-Mutant 1095 | -10/Materials | Discovered new exit (range 13) 1488 | -10/Materials | Discovered new exit (range 5) 1526 | -10/Materials | Entered Subcaves 1527 | -10/Subcaves | Approached by a straggling Scientist 1528 | -10/Subcaves | Core integrity fell below 50% 1843 | -10/Subcaves | Build established: Mutant 1984 | -10/Subcaves | Identified exit to Materials 2581 | -10/Subcaves | Core integrity fell below 20% 2661 | -10/Subcaves | Scientist uncovered a shortcut to Scraptown 2704 | -10/Subcaves | Entered Scraptown 3017 | -8/Scraptown | Visited Comm Corps 3135 | -8/Scraptown | Visited Assassins FH 3190 | -8/Scraptown | Visited UFD Registry 3217 | -8/Scraptown | Visited Fellowship of the Rings 3265 | -8/Scraptown | Visited Awakened 3507 | -8/Scraptown | Discovered new exit (range 11) 3651 | -8/Scraptown | Scanned Subdweller tech in exchange for log data 3656 | -8/Scraptown | Learned 12 Research zone layouts 3657 | -8/Scraptown | Learned Research non-interactive machine intel 4347 | -8/Scraptown | Visited Bundlers 4428 | -8/Scraptown | Visited Cyclists 4467 | -8/Scraptown | Visited Shadow of the Wyrm 4787 | -8/Scraptown | Entered Factory 4787 | -6/Factory | Evolved 8 slots: Propulsion x3, Utility x3, Weapon x2 4888 | -6/Factory | Discovered new exit (range 11) 4964 | -6/Factory | Attached CPS modules to Y-54 Guardian. 5226 | -6/Factory | Discovered new exit (range 8) 5242 | -6/Factory | Lost 3 parts (1u2w) 5343 | -6/Factory | Fabricated Y-54 Guardian (x2) 5516 | -6/Factory | Build established: Hacker-Sprinter 5683 | -6/Factory | Repaired Phase Shifter 5833 | -6/Factory | Lost 9 parts (1p3n2u3w) 5837 | -6/Factory | Search patrols dispatched 5870 | -6/Factory | Identified exit to Garrison 5871 | -6/Factory | Entered Garrison 5967 | -6/Garrison | Triggered checkpoint 6003 | -6/Garrison | Core integrity fell below 50% 6003 | -6/Garrison | Triggered checkpoint 6025 | -6/Garrison | Triggered checkpoint 6081 | -6/Garrison | Discovered new exit (range 10) 6084 | -6/Garrison | Attempted to access garrison exit controls, blocked by remote lockdown 6113 | -6/Garrison | Triggered checkpoint 6133 | -6/Garrison | Triggered checkpoint 6149 | -6/Garrison | Core integrity fell below 20% 6165 | -6/Garrison | Heavy support dispatched to Factory 6193 | -6/Garrison | Destroyed by S-27 Virus with Autogun Last Messages --------------- HV Slug penetrates G-50 Soldier. G-50 Soldier suffers critical hit (Destroy). G-50 Soldier destroyed. HV Slug penetrates G-50 Soldier. HV Slug penetrates Wall. HV Slug penetrates G-50 Soldier. ALERT: Dispatching Heavy support to Factory. Cesium-ion Thruster destroyed. HV Slug penetrates Wall. HV Slug penetrates S-27 Virus. HV Slug penetrates Wall. Hyp. Gauss Rifle destroyed. System corrupted: Matter fused (-6). Triggered Stasis Trap. A bubble of rippling energy engulfs the area. Field strength at 94. Field strength at 88. Field strength at 77. Field strength at 71. Biomechanical Wings destroyed. Map ----- +----------------------------------------------------+ | ????????????????# #??????# #?# #????????????# | | ????????????????# #??????+ ###"###??????????# ^ | | ????????????????# #??????# ## #??????????#*^ | | ????????????????# #?????## ## ############ ! | | ????????????????# ####### =[ | | ????????????????# | | ????????????????# | | ????????????????##+####### ## ## ########## | | ???????????????????????### ## ## ###??????? | | ???????????????????????# #??????? | | ???????????????????????# #??????? | | ???????????????????????# #??????? | | ???????????????????????# #??????? | | ???????????????????????### ## ## ###??????? | | ???????????????########### ## ## ########## | | ???????????????# | | ???????????????T | | ???????????????????####### | | ?????????????????????????## ## ############# | | ??????????????????????????# ## #???????????# | | ??????????????????????????# #######???????????# | | ??????????????????????????# #?????????????????# | | ??????????????????????????# #?????????????????# | | ??????????????????????????# #?????????????????#^ | | ???????????????# #########s #?????????????????#^ | | ??????????ss @s #?????????????????# | | ??????????s s #?????????????????# | | ?????????????### #############?????????????????# | | ???????????????????????????????????????????????# | | ???????????????????????????????????????????????# | | ???????????????????????????????????????????????# | | ???????????????????????????????????????????????# | | ???????????????????????????????????????????????# | | ???????????????????????????????????????????????# | | ???????????????????????????????????????????????# | | ???????????????????????????????????????????????# | | ???????????????????????????????????????????????# | | ???????????????????????????????????????????????# | | ???????????????????????????????????????????????# | | ???????????????????????????????????????????????### | | ?????????????????????????????????????????????????? | | ???????????????????????????????????????????????### | | ???????????????????????????????????????????????# | | ???????????????????????????????????????????????# | | ???????????????????????????????????????????????### | | ????????????????????????????????????????????????#" | | ????????????????????????????????????????????????## | | ?????????????????????????????????????????????????? | | ?????????????????????????????????????????????????? | | ?????????????????????????????????????????????????? | +----------------------------------------------------+ Best States ------------- Heat Dissipation 37 Energy Generation 18 Energy Capacity 290 Matter Stores 300 Matter Capacity 300 Sight Range 21 Terrain Scan Density 10 Power Amplification 20 Armor Coverage 225 Phase Shifting 5 Evasion (%) 69 Recoil Reduction 2 Offensive Hacking 30 Item Schematics ----------------- None Robot Schematics ------------------ Y-54 Guardian | -6/Factory | Hacked Fabricated ------------ Y-54 Guardian | x2 | -6/Factory Repaired ---------- Lgt. Cannon | 5% | -10/Materials Phase Shifter | 28% | -6/Factory Studied --------- None Alien Tech Used ----------------- None Achievements -------------- Civilization 2243 Dynamic Key GoHome() My Command Is Your Wish Nice Directions, Buddy Suspicious Challenges ------------ None Game ------ Seed CatalystWeightMegashotty Manual? 0 Play Time 01:31:19 Cumulative 8.1 hours Start 2025.12.23 @ 23:09:32 End 2025.12.25 @ 01:27:44 Sessions 1 Manual Loads 0 Difficulty Rogue Special Mode None Game No. 15 Rogue 15 Adventurer 0 Explorer 0 Win Type - Total 0 Types 0/0/0/0/0/0/0/0/0/0 Lore% 12 Gallery% 15 Achievement% 14 Wizard Run 0 Options --------- Layout 1 ASCII 0 Keyboard 0 Movement Mouse Keybinds 0 Fullscreen 1 Font 16/SmallcapsGlow Map View 25x17 Zoom Use 99% Tactical HUD 0 Map Filters NONE Filters NONE Steam 1 RUN: 789403a4-f2b7-4840-84f7-40a9a7ed7332